bitfinex/quotes_SOLUSD_20240821
["timestamp","ask_amount","ask_price","bid_price","bid_amount"]
[1724202335270,389.9,142.46,142.4,45.0]
[1724202335877,389.9,142.46,142.41,1.36829451]
[1724202336055,389.9,142.46,142.4,45.0]
[1724202336975,403.22,142.46,142.4,45.0]
[1724202337978,389.9,142.46,142.4,45.0]
[1724202342370,389.9,142.46,142.4,58.32]
[1724202342568,389.9,142.46,142.41,15.463]
[1724202342763,389.9,142.46,142.42,45.0]
[1724202344151,0.8505101,142.48,142.42,45.0]
[1724202344356,0.8505101,142.48,142.43,1.40292084]
[1724202344548,0.8505101,142.48,142.45,15.2528]
[1724202344752,0.8505101,142.48,142.46,59.72336101]
[1724202345381,0.8505101,142.48,142.46,58.32]
[1724202347481,13.32,142.58,142.48,15.5531]
[1724202347805,13.32,142.59,142.5,13.32]
[1724202347954,44.55730168,142.62,142.51,45.4320299]
[1724202348159,13.32,142.6,142.52,0.43199958]
[1724202348374,13.32,142.6,142.52,1.40282589]
[1724202348663,13.32,142.6,142.53,6.6458]
[1724202348851,13.32,142.6,142.54,46.40262905]
[1724202349265,13.32,142.6,142.54,45.0]
[1724202349995,13.32,142.6,142.55,1.40017942]
[1724202350296,0.8505101,142.62,142.55,16.85877942]
[1724202350805,14.1705101,142.62,142.56,45.0]
[1724202351176,13.32,142.6,142.56,45.0]
[1724202352396,0.8505101,142.62,142.56,45.0]
[1724202352397,14.1705101,142.62,142.56,45.0]
[1724202352588,13.32,142.6,142.56,45.0]
[1724202354902,14.1705101,142.62,142.56,45.0]
[1724202357075,13.32,142.6,142.56,45.0]
[1724202359187,13.32,142.6,142.55,15.4586]
[1724202359383,13.32,142.58,142.55,15.4586]
[1724202360504,20.8505101,142.62,142.55,15.4586]
[1724202360505,13.32,142.59,142.55,15.4586]
[1724202360678,13.32,142.59,142.56,45.0]
[1724202361904,13.32,142.61,142.56,45.0]
[1724202362112,13.32,142.61,142.57,1.40176679]
[1724202362602,13.32,142.61,142.56,45.0]
[1724202362778,13.32,142.61,142.57,1.40068525]
[1724202363775,13.32,142.61,142.56,45.0]
[1724202364000,13.32,142.61,142.57,1.40150789]
[1724202366107,14.1705101,142.62,142.58,1.40246814]
[1724202366294,14.1705101,142.62,142.56,45.0]
[1724202367501,13.32,142.58,142.55,15.4586]
[1724202369703,13.32,142.58,142.56,45.0]
[1724202369905,13.32,142.6,142.56,45.0]
[1724202372688,0.8505101,142.62,142.56,45.0]
[1724202372889,13.32,142.6,142.56,45.0]
[1724202373708,0.8505101,142.62,142.56,45.0]
[1724202374189,0.8505101,142.62,142.57,1.40235967]
[1724202374391,0.8505101,142.62,142.56,45.0]
[1724202374392,0.8505101,142.62,142.58,1.40235972]
[1724202376022,0.8505101,142.62,142.59,6.6666]
[1724202376315,0.8505101,142.62,142.6,46.40226961]
[1724202376522,0.8505101,142.62,142.6,45.0]
[1724202376895,14.1705101,142.62,142.6,45.0]
[1724202377098,14.1705101,142.62,142.55,22.1252]
[1724202377418,13.32,142.6,142.55,22.1252]
[1724202378727,13.32,142.6,142.56,45.0]
[1724202379226,0.8505101,142.62,142.56,45.0]
[1724202382522,14.1705101,142.62,142.55,22.1252]
[1724202383745,14.1705101,142.62,142.56,45.0]
[1724202385115,0.8505101,142.62,142.56,45.0]
[1724202391319,0.8505101,142.62,142.58,13.32]
[1724202391524,0.8505101,142.62,142.59,45.0]
[1724202391731,0.8505101,142.62,142.6,1.40207611]
[1724202391928,0.8505101,142.62,142.61,1.40207601]
[1724202392134,0.8505101,142.62,142.59,45.0]
[1724202396351,0.8505101,142.62,142.6,13.32]
[1724202396542,0.8505101,142.62,142.61,87.72248]
[1724202397048,0.8505101,142.62,142.61,89.12407551]
[1724202397223,15.0496,142.73,142.61,89.12407551]
[1724202397423,28.3696,142.73,142.64,13.32]
[1724202397624,13.32,142.71,142.65,45.0]
[1724202400325,13.32,142.69,142.61,42.4715]
[1724202400529,13.32,142.67,142.61,22.4715]
[1724202401831,13.32,142.67,142.62,45.0]
[1724202402423,13.32,142.65,142.57,21.3605]
[1724202402624,6.3776,142.7,142.57,21.3605]
[1724202402866,13.32,142.66,142.57,21.3605]
[1724202403721,13.32,142.66,142.58,45.25098]
[1724202403925,13.32,142.66,142.59,20.0]
[1724202404229,13.32,142.66,142.6,45.0]
[1724202404939,0.85008484,142.69,142.6,45.0]
[1724202405124,13.32,142.66,142.6,45.0]
[1724202405325,13.32,142.62,142.57,21.3605]
[1724202405756,13.32,142.62,142.54,6.3878]
[1724202406055,0.85008484,142.65,142.54,6.3878]
[1724202406056,13.32,142.6,142.54,6.3878]
[1724202406266,13.32,142.58,142.53,15.2818]
[1724202406730,13.32,142.6,142.53,15.2818]
[1724202407457,28.5124,142.62,142.53,15.2818]
[1724202408140,13.32,142.62,142.54,79.97287514]
[1724202408454,6.0698,142.64,142.55,1.40233538]
[1724202408647,33.13,142.65,142.55,1.40233538]
[1724202410237,33.13,142.65,142.54,65.25098]
[1724202410760,33.98008484,142.65,142.54,65.25098]
[1724202411127,33.13,142.63,142.54,65.25098]
[1724202413358,33.13,142.63,142.54,65.12549]
[1724202414052,33.13,142.63,142.55,1.40165488]
[1724202414461,33.13,142.63,142.54,65.12549]
[1724202415139,33.13,142.63,142.54,65.0]
[1724202415463,33.13,142.63,142.55,1.3690644]
[1724202417236,33.13,142.63,142.54,65.0]
[1724202418466,33.13,142.61,142.54,65.0]
[1724202420165,33.13,142.61,142.54,45.0]
[1724202421371,33.13,142.61,142.55,1.40186267]
[1724202421667,33.13,142.61,142.54,45.0]
[1724202422443,33.13,142.63,142.54,45.0]
[1724202422746,33.13,142.63,142.55,1.40188275]
[1724202424877,33.13,142.63,142.54,45.0]
[1724202430276,33.13,142.61,142.54,45.0]
[1724202430573,13.26,142.59,142.54,45.0]
[1724202431369,13.26,142.59,142.53,15.2818]
[1724202431779,13.26,142.57,142.53,15.2818]
[1724202432565,33.16,142.58,142.53,15.2818]
[1724202433381,0.85008484,142.57,142.51,6.3878]
[1724202433676,33.16,142.58,142.51,6.3878]
[1724202434061,0.85008484,142.57,142.51,6.3878]
[1724202434261,33.16,142.56,142.51,6.3878]
[1724202434586,33.16,142.56,142.49,15.3966]
[1724202434880,0.85008484,142.55,142.49,15.3966]
[1724202435184,33.16,142.56,142.49,15.3966]
[1724202435858,33.16,142.56,142.5,45.0]
[1724202440088,33.16,142.56,142.51,1.16924436]
[1724202440264,33.16,142.56,142.52,1.16916231]
[1724202440462,33.16,142.56,142.5,45.0]
[1724202441557,33.16,142.58,142.5,45.0]
[1724202441756,33.16,142.6,142.5,45.0]
[1724202442290,33.16,142.6,142.51,1.08387133]
[1724202442920,33.16,142.58,142.5,45.0]
[1724202452588,13.27,142.56,142.5,45.0]
[1724202452772,53.08,142.59,142.5,45.0]
[1724202452974,13.27,142.56,142.5,45.0]
[1724202454392,13.27,142.56,142.51,1.31885932]
[1724202454595,13.27,142.56,142.52,1.31876679]
[1724202456081,13.27,142.56,142.53,1.40291018]
[1724202457501,13.27,142.56,142.5,45.0]
[1724202461999,13.27,142.59,142.51,1.40296126]
[1724202462201,13.27,142.61,142.54,15.5922]
[1724202462380,13.27,142.61,142.55,46.40237781]
[1724202462784,13.3520956,142.63,142.55,46.40237781]
[1724202463012,13.27,142.61,142.55,45.0]
[1724202463197,0.0820956,142.63,142.55,45.0]
[1724202463198,13.27,142.59,142.55,45.0]
[1724202465314,13.27,142.57,142.51,35.8871]
[1724202466209,0.85008484,142.61,142.51,35.8871]
[1724202466397,13.27,142.57,142.51,35.8871]
[1724202466713,13.27,142.57,142.52,45.0]
[1724202471094,13.27,142.55,142.51,15.8871]
[1724202473922,13.27,142.57,142.52,1.40316513]
[1724202474097,13.27,142.57,142.52,46.40316513]
[1724202475199,13.27,142.57,142.52,45.0]
[1724202477809,13.27,142.57,142.52,46.40303615]
[1724202478628,13.27,142.55,142.51,15.8871]
[1724202479126,13.27,142.54,142.47,15.3994]
[1724202479326,13.27,142.52,142.47,15.3994]
[1724202479496,13.27,142.5,142.47,15.3994]
[1724202480342,13.27,142.48,142.43,22.9933]
[1724202482422,35.7663,142.55,142.43,22.9933]
[1724202482625,13.27,142.51,142.44,45.0]
[1724202482941,15.7663,142.55,142.44,45.0]
[1724202483128,13.27,142.51,142.44,45.0]
[1724202483836,13.27,142.54,142.45,1.40291593]
[1724202484004,13.27,142.54,142.46,1.40332964]
[1724202484410,13.27,142.54,142.45,20.0]
[1724202484640,13.27,142.54,142.46,45.0]
[1724202485048,13.27,142.54,142.47,1.40330954]
[1724202486534,13.27,142.54,142.46,45.0]
[1724202489916,13.27,142.54,142.47,16.0892]
[1724202490219,13.27,142.54,142.48,45.0]
[1724202490830,13.27,142.54,142.49,6.1666]
[1724202491029,13.27,142.56,142.5,46.40315882]
[1724202492441,13.27,142.56,142.5,45.0]
[1724202492932,13.27,142.55,142.5,45.0]
[1724202500422,15.1893,142.59,142.5,45.0]
[1724202500423,13.27,142.57,142.5,45.0]
[1724202500730,13.27,142.57,142.51,1.40304525]
[1724202501332,13.27,142.57,142.5,45.0]
[1724202502548,13.27,142.55,142.5,45.0]
[1724202502751,0.85008484,142.54,142.49,6.1666]
[1724202502970,13.27,142.53,142.49,6.1666]
[1724202503749,13.27,142.53,142.47,16.0892]
[1724202505038,13.27,142.53,142.48,45.0]
[1724202508031,13.27,142.54,142.48,45.0]
[1724202508531,13.27,142.56,142.48,45.0]
[1724202509039,13.27,142.57,142.49,1.40323211]
[1724202511722,13.27,142.57,142.48,58.27]
[1724202513330,13.27,142.57,142.48,45.0]
[1724202514851,0.85008484,142.56,142.48,45.0]
[1724202515054,13.27,142.55,142.48,45.0]
[1724202516662,13.27,142.55,142.49,1.40322803]
[1724202517030,13.27,142.55,142.48,45.0]
[1724202520568,15.1893,142.59,142.48,45.0]
[1724202520569,13.27,142.57,142.48,45.0]
[1724202522056,13.27,142.61,142.52,13.27]
[1724202522261,13.3520956,142.63,142.55,15.4229]
[1724202522435,13.3520956,142.63,142.56,45.0]
[1724202523371,13.3520956,142.63,142.57,1.4025221]
[1724202524471,13.3520956,142.63,142.58,1.40252261]
[1724202525546,13.3520956,142.63,142.57,1.40243195]
[1724202525773,13.3520956,142.63,142.58,1.40233358]
[1724202526641,13.3520956,142.63,142.57,1.40233358]
[1724202526943,13.3520956,142.63,142.58,1.40243365]
[1724202527870,13.3520956,142.63,142.56,45.0]
[1724202528543,13.27,142.61,142.56,45.0]
[1724202529539,13.27,142.61,142.55,15.4229]
[1724202529735,0.85008484,142.6,142.55,15.4229]
[1724202530340,0.85008484,142.6,142.54,6.0382]
[1724202530341,13.27,142.59,142.54,6.0382]
[1724202530548,0.85008484,142.58,142.54,6.0382]
[1724202531569,13.27,142.59,142.54,6.0382]
[1724202532463,13.27,142.59,142.55,45.0]
[1724202533358,13.27,142.59,142.56,1.40200946]
[1724202534350,13.27,142.59,142.55,45.0]
[1724202534554,0.85008484,142.58,142.55,45.0]
[1724202534759,0.85008484,142.58,142.54,6.0382]
[1724202536358,13.27,142.59,142.54,6.0382]
[1724202536768,13.27,142.59,142.55,1.40285767]
[1724202538662,13.27,142.59,142.55,1.04082102]
[1724202538858,0.0820956,142.63,142.55,45.0]
[1724202538859,13.27,142.61,142.55,45.0]
[1724202539176,0.0820956,142.63,142.56,1.04083202]
[1724202539177,13.3520956,142.63,142.56,1.04083202]
[1724202539678,13.3520956,142.63,142.55,45.0]
[1724202541884,0.85008484,142.62,142.55,45.0]
[1724202542473,13.3520956,142.63,142.55,45.0]
[1724202544784,0.85008484,142.62,142.55,45.0]
[1724202545193,13.27,142.61,142.55,45.0]
[1724202546464,0.85008484,142.6,142.54,6.0382]
[1724202546669,13.27,142.59,142.54,6.0382]
[1724202550094,13.27,142.61,142.54,6.0382]
[1724202550280,13.27,142.61,142.55,46.40193489]
[1724202550670,13.27,142.61,142.55,45.0]
[1724202551398,13.27,142.61,142.56,1.40263265]
[1724202552773,13.27,142.61,142.55,45.0]
[1724202552975,13.3520956,142.63,142.56,1.40178435]
[1724202553780,0.0820956,142.63,142.56,1.40178435]
[1724202555988,0.0820956,142.63,142.55,45.0]
[1724202556504,13.3520956,142.63,142.55,45.0]
[1724202558684,13.27,142.61,142.55,45.0]
[1724202558978,13.27,142.61,142.54,6.0382]
[1724202559304,13.27,142.61,142.55,20.0]
[1724202559506,13.27,142.59,142.54,6.0382]
[1724202559712,0.85008484,142.58,142.52,15.9303]
[1724202559918,13.27,142.57,142.52,15.9303]
[1724202560493,0.85008484,142.56,142.52,15.9303]
[1724202560705,0.85008484,142.56,142.5,6.5308]
[1724202561282,13.27,142.55,142.5,6.5308]
[1724202561517,0.85008484,142.54,142.49,16.143]
[1724202561690,13.27,142.55,142.49,16.143]
[1724202561890,13.27,142.53,142.46,6.4561]
[1724202563197,13.27,142.53,142.47,20.0]
[1724202563806,13.27,142.53,142.48,45.0]
[1724202565301,13.27,142.55,142.48,45.0]
[1724202566415,13.27,142.55,142.49,1.40246504]
[1724202566910,0.85008484,142.54,142.48,45.0]
[1724202567527,13.27,142.55,142.48,45.0]
[1724202569989,13.27,142.53,142.48,45.0]
[1724202570191,0.85008484,142.52,142.45,16.6243]
[1724202570410,0.85008484,142.52,142.46,45.0]
[1724202573198,0.85008484,142.52,142.43,19.8828]
[1724202573407,13.27,142.53,142.44,20.0]
[1724202574712,13.27,142.53,142.45,45.0]
[1724202577311,13.27,142.53,142.46,0.44368588]
[1724202577816,6.0396,142.55,142.49,13.27]
[1724202578072,16.18,142.56,142.5,45.6257068]
[1724202578231,22.4329,142.59,142.51,14.30650753]
[1724202578523,22.4329,142.59,142.52,46.40292988]
[1724202579299,16.0671,142.59,142.52,46.40292988]
[1724202579623,19.3837,142.62,142.52,46.40292988]
[1724202579987,19.3837,142.62,142.52,45.0]
[1724202580217,19.3837,142.62,142.53,1.40211897]
[1724202580717,19.3837,142.62,142.52,45.0]
[1724202581394,19.3837,142.62,142.53,1.40230448]
[1724202582295,19.3837,142.62,142.52,45.0]
[1724202582824,19.3837,142.62,142.53,1.40280984]
[1724202586497,13.27,142.62,142.54,1.40280954]
[1724202586702,16.4476956,142.63,142.55,13.27]
[1724202586925,16.4476956,142.63,142.56,45.0]
[1724202587197,0.0820956,142.63,142.56,45.0]
[1724202587402,0.0820956,142.63,142.57,1.40137216]
[1724202587703,0.93218044,142.63,142.56,45.0]
[1724202590110,13.27,142.6,142.54,20.0]
[1724202591508,13.27,142.6,142.55,45.0]
[1724202594239,13.27,142.62,142.55,45.0]
[1724202597522,0.85008484,142.61,142.55,45.0]
[1724202597847,0.85008484,142.61,142.54,45.0]
[1724202599353,13.3520956,142.63,142.54,45.0]
[1724202600251,0.85008484,142.62,142.54,45.0]
[1724202600760,13.3520956,142.63,142.54,45.0]
[1724202601935,0.0820956,142.63,142.54,45.0]
[1724202602338,0.0820956,142.63,142.55,13.69251309]
[1724202602539,0.0820956,142.63,142.55,13.27]
[1724202602739,0.0820956,142.63,142.56,45.0]
[1724202606732,0.0820956,142.63,142.57,34.42450527]
[1724202606927,0.0820956,142.63,142.58,46.15596122]
[1724202607137,0.0820956,142.63,142.58,45.0]
[1724202607830,0.0820956,142.63,142.59,14.67216293]
[1724202608024,0.0820956,142.63,142.6,45.0]
[1724202608260,0.0820956,142.63,142.61,1.40196628]
[1724202609652,0.0820956,142.63,142.6,45.0]
[1724202609952,0.0820956,142.63,142.59,45.0]
[1724202611449,0.0820956,142.63,142.59,58.27]
[1724202612121,0.0820956,142.63,142.61,13.27]
[1724202612453,0.0820956,142.63,142.62,46.29848463]
[1724202613526,0.0820956,142.63,142.62,45.0]
[1724202615463,0.0820956,142.63,142.61,45.0]
[1724202615754,0.0820956,142.63,142.61,46.40210097]
[1724202616052,0.0820956,142.63,142.61,45.0]
[1724202618064,0.0820956,142.63,142.62,1.40207944]
[1724202618652,0.0820956,142.63,142.61,45.0]
[1724202618859,0.0820956,142.63,142.62,1.40129185]
[1724202619166,0.0820956,142.63,142.62,14.67129185]
[1724202619323,0.0820956,142.63,142.62,58.27]
[1724202621752,0.0820956,142.63,142.62,78.52098]
[1724202633647,0.0820956,142.63,142.62,65.25098]
[1724202633848,0.0820956,142.63,142.62,78.52098]
[1724202634877,0.0820956,142.63,142.62,20.0]
[1724202635055,0.0820956,142.63,142.6,20.0]
[1724202635256,0.0820956,142.63,142.56,5.88730816]
[1724202635477,0.0820956,142.63,142.57,13.27]
[1724202638163,0.0820956,142.63,142.58,65.0]
[1724202639291,0.0820956,142.63,142.58,20.0]
[1724202639461,0.0820956,142.63,142.57,20.0]
[1724202639968,0.0820956,142.63,142.56,13.27]
[1724202640606,15.5081,142.62,142.57,45.0]
[1724202641179,15.5081,142.62,142.52,19.15730816]
[1724202641180,0.85008484,142.61,142.52,19.15730816]
[1724202641387,13.27,142.6,142.52,13.27]
[1724202641698,0.85008484,142.59,142.5,19.3248]
[1724202642198,0.85008484,142.59,142.48,19.15730816]
[1724202642199,15.5081,142.57,142.48,19.15730816]
[1724202642376,13.27,142.56,142.48,13.27]
[1724202643187,13.27,142.56,142.49,45.0]
[1724202644212,13.27,142.56,142.5,20.0]
[1724202644372,13.27,142.56,142.51,45.0]
[1724202644578,15.5081,142.57,142.51,45.0]
[1724202644907,16.35818484,142.57,142.51,45.0]
[1724202645622,16.35818484,142.57,142.52,1.40302682]
[1724202645623,15.5081,142.57,142.52,1.40302682]
[1724202645971,15.5081,142.57,142.51,45.0]
[1724202648697,15.5081,142.57,142.52,1.40285802]
[1724202648902,15.5081,142.57,142.51,45.0]
[1724202656286,15.5081,142.57,142.52,20.0]
[1724202656484,15.5081,142.57,142.53,45.0]
[1724202657027,15.9129,142.6,142.54,21.4027171]
[1724202657196,15.9129,142.6,142.55,46.4024963]
[1724202659119,15.9129,142.6,142.56,1.40239791]
[1724202659326,15.9129,142.6,142.56,21.40239791]
[1724202659495,15.9129,142.6,142.57,45.0]
[1724202659818,15.9129,142.6,142.58,1.40220119]
[1724202660320,6.288,142.62,142.57,45.0]
[1724202666025,6.288,142.62,142.58,1.40245398]
[1724202666200,0.0820956,142.63,142.58,1.40245398]
[1724202667220,0.0820956,142.63,142.58,21.40245398]
[1724202667521,0.0820956,142.63,142.59,45.0]
[1724202681427,13.25,142.61,142.52,13.25]
[1724202681618,0.85008484,142.6,142.53,20.0]
[1724202681818,13.25,142.61,142.53,20.0]
[1724202682020,13.25,142.61,142.52,13.25]
[1724202682938,13.25,142.61,142.51,15.8165]
[1724202683128,29.606,142.59,142.5,6.5634]
[1724202683315,13.25,142.57,142.48,29.8253]
[1724202684249,16.356,142.59,142.49,1.40250817]
[1724202684415,29.606,142.59,142.49,1.40250817]
[1724202684616,29.606,142.59,142.49,21.40250817]
[1724202685046,16.356,142.59,142.52,13.25]
[1724202685338,16.356,142.59,142.53,45.0]
[1724202687732,29.606,142.59,142.53,45.0]
[1724202689148,16.356,142.59,142.53,45.0]
[1724202689515,16.356,142.59,142.54,1.40277921]
[1724202689717,16.356,142.59,142.55,1.40269359]
[1724202690819,16.356,142.59,142.53,45.0]
[1724202691045,14.10008484,142.58,142.5,13.25]
[1724202691252,13.25,142.58,142.51,20.0]
[1724202691834,13.25,142.58,142.49,20.0]
[1724202692140,14.10008484,142.58,142.49,20.0]
[1724202692343,13.25,142.58,142.5,45.25098]
[1724202692524,13.25,142.58,142.51,20.0]
[1724202692723,13.25,142.58,142.52,45.0]
[1724202695227,16.356,142.59,142.52,45.0]
[1724202695430,16.356,142.59,142.52,58.25]
[1724202695621,16.356,142.59,142.53,1.37011473]
[1724202696040,16.356,142.59,142.52,58.25]
[1724202699833,17.20608484,142.59,142.52,45.0]
[1724202701461,16.356,142.59,142.52,45.0]
[1724202705063,0.85008484,142.58,142.52,45.0]
[1724202705468,29.606,142.59,142.52,45.0]
[1724202706947,16.356,142.59,142.53,13.25]
[1724202707142,21.3983,142.62,142.55,13.25]
[1724202707538,21.3983,142.62,142.56,45.0]
[1724202707747,21.3983,142.62,142.57,1.40242675]
[1724202707947,21.3983,142.62,142.58,1.40232838]
[1724202708233,21.3983,142.62,142.57,33.25]
[1724202708234,15.383,142.62,142.57,33.25]
[1724202708458,15.383,142.62,142.58,45.0]
[1724202709235,0.0820956,142.63,142.59,20.0]
[1724202709440,0.0820956,142.63,142.6,45.0]
[1724202709646,0.0820956,142.63,142.58,45.0]
[1724202709875,0.0820956,142.63,142.59,20.0]
[1724202710168,0.0820956,142.63,142.6,45.0]
[1724202713253,0.0820956,142.63,142.61,1.10905645]
[1724202714080,0.0820956,142.63,142.6,45.0]
[1724202714654,0.0820956,142.63,142.61,1.40209398]
[1724202714854,0.0820956,142.63,142.61,14.65209398]
[1724202715079,0.0820956,142.63,142.62,45.0]
[1724202715253,0.0820956,142.63,142.62,65.0]
[1724202715857,0.0820956,142.63,142.62,65.25098]
[1724202720698,0.0820956,142.63,142.62,65.12549]
[1724202720978,0.0820956,142.63,142.62,65.0]
[1724202721763,0.0820956,142.63,142.62,20.0]
[1724202722389,0.0820956,142.63,142.6,20.0]
[1724202723199,0.0820956,142.63,142.61,45.0]
[1724202723484,0.0820956,142.63,142.62,20.0]
[1724202723658,0.0820956,142.63,142.62,65.0]
[1724202724380,0.0820956,142.63,142.59,13.25]
[1724202726186,0.0820956,142.63,142.6,20.0]
[1724202726660,0.0820956,142.63,142.61,45.0]
[1724202727066,0.0820956,142.63,142.61,46.4022423]
[1724202731468,0.0820956,142.63,142.61,45.0]
[1724202731780,0.0820956,142.63,142.62,1.40127132]
[1724202732177,0.0820956,142.63,142.61,58.25]
[1724202736383,0.0820956,142.63,142.6,20.0]
[1724202737794,0.0820956,142.63,142.61,45.0]
[1724202738168,0.0820956,142.63,142.6,20.0]
[1724202738393,0.0820956,142.63,142.58,20.0]
[1724202738786,0.0820956,142.63,142.59,13.25]
[1724202738991,0.0820956,142.63,142.6,20.0]
[1724202739785,0.0820956,142.63,142.61,58.25]
[1724202741386,0.0820956,142.63,142.62,1.40202703]
[1724202743599,0.0820956,142.63,142.61,58.25]
[1724202750407,22.3073,142.69,142.61,58.25]
[1724202750408,21.8893956,142.69,142.61,58.25]
[1724202750810,21.8893956,142.69,142.62,21.40106767]
[1724202750999,21.8893956,142.69,142.63,58.25]
[1724202751198,21.8893956,142.69,142.64,20.0]
[1724202751396,21.8893956,142.69,142.65,45.0]
[1724202754027,15.5289956,142.69,142.65,45.0]
[1724202754228,15.5289956,142.69,142.66,1.39974325]
[1724202758813,15.5289956,142.69,142.65,45.0]
[1724202760333,15.5289956,142.69,142.66,1.40165566]
[1724202760510,15.5289956,142.69,142.65,45.0]
[1724202762512,15.5289956,142.69,142.64,20.0]
[1724202762827,0.85008484,142.68,142.61,26.49533679]
[1724202763603,28.7789956,142.69,142.61,26.49533679]
[1724202763823,15.5289956,142.69,142.62,13.25]
[1724202764009,15.5289956,142.69,142.63,65.0]
[1724202764423,15.5289956,142.69,142.64,1.40177413]
[1724202766835,15.5289956,142.69,142.65,1.40167586]
[1724202767030,15.5289956,142.69,142.65,46.40167586]
[1724202767340,22.8327,142.72,142.65,46.40167586]
[1724202769343,16.3146,142.72,142.66,33.25]
[1724202769642,16.3146,142.72,142.67,46.40147936]
[1724202769819,16.3146,142.72,142.68,1.40148864]
[1724202772435,34.9745,142.76,142.68,1.40148864]
[1724202773853,34.9745,142.76,142.67,45.0]
[1724202782722,0.85008484,142.75,142.67,45.0]
[1724202783527,13.25,142.74,142.66,26.2027]
[1724202783728,0.85008484,142.73,142.66,26.2027]
[1724202784136,13.25,142.72,142.66,26.2027]
[1724202784945,13.25,142.72,142.67,45.0]
[1724202786032,13.25,142.74,142.67,45.0]
[1724202787152,21.7245,142.76,142.67,45.0]
[1724202787363,13.25,142.75,142.67,45.0]
[1724202788283,0.85008484,142.74,142.67,45.0]
[1724202789254,28.9162,142.76,142.67,45.0]
[1724202791857,0.8481844,142.78,142.68,30.37365053]
[1724202792059,0.8481844,142.78,142.7,13.25]
[1724202792267,0.8481844,142.78,142.71,66.40101121]
[1724202792432,0.8481844,142.78,142.71,65.0]
[1724202792637,14.0981844,142.78,142.71,65.0]
[1724202792950,14.0981844,142.78,142.72,1.40110416]
[1724202794262,14.0981844,142.78,142.71,65.0]
[1724202795242,0.8481844,142.78,142.72,1.40109007]
[1724202797137,0.8481844,142.78,142.71,71.5713]
[1724202797859,0.8481844,142.78,142.72,28.7827]
[1724202798042,0.8481844,142.78,142.73,45.0]
[1724202804649,0.8481844,142.78,142.72,15.5327]
[1724202805155,13.25,142.76,142.68,15.4535]
[1724202805456,0.85008484,142.75,142.68,15.4535]
[1724202806279,13.25,142.76,142.68,15.4535]
[1724202806638,13.25,142.76,142.69,45.0]
[1724202809195,14.0981844,142.78,142.69,58.25]
[1724202809718,14.0981844,142.78,142.7,1.40122738]
[1724202809912,14.0981844,142.78,142.69,58.25]
[1724202811087,14.94826924,142.78,142.69,58.25]
[1724202811393,14.0981844,142.78,142.69,58.25]
[1724202811595,0.85008484,142.77,142.69,58.25]
[1724202812382,14.0981844,142.78,142.69,58.25]
[1724202814271,0.8481844,142.78,142.69,58.25]
[1724202815086,0.8481844,142.78,142.7,20.0]
[1724202815387,0.8481844,142.78,142.71,45.0]
[1724202815897,1.69826924,142.78,142.71,45.0]
[1724202821102,0.8481844,142.78,142.71,45.0]
[1724202821784,1.69826924,142.78,142.71,45.0]
[1724202822303,0.8481844,142.78,142.71,45.0]
[1724202822913,1.69826924,142.78,142.71,45.0]
[1724202828783,17.71986924,142.78,142.71,45.0]
[1724202830005,16.8697844,142.78,142.71,45.0]